fUST/lending_fUST_20241205
["ID","MTS","AMOUNT","RATE_DAILY","PERIOD"]
[344307577,1733335846769,-500.0,0.00026027,7]
[344307578,1733335846778,-717.25,0.00026027,7]
[344307579,1733335846787,-500.0,0.00026027,7]
[344307580,1733335846797,-2233.13,0.00026027,7]
[344307581,1733335846806,-597.45,0.00026027,7]
[344307582,1733335846816,-500.0,0.00026027,7]
[344307583,1733335846825,-500.0,0.00026027,7]
[344307584,1733335846834,-933.23,0.00026027,7]
[344307585,1733335846843,-1605.0,0.00026027,7]
[344307586,1733335846853,-500.0,0.00026027,7]
[344307587,1733335846866,-500.0,0.00026027,7]
[344307588,1733335846875,-571.72,0.00026027,7]
[344307589,1733335846884,-500.0,0.00026027,7]
[344307590,1733335846893,-723.72,0.00026027,7]
[344307591,1733335847072,-536.56,0.00026027,7]
[344307592,1733335847083,-572.72,0.00026027,7]
[344307593,1733335847094,-500.0,0.00026027,7]
[344307594,1733335847105,-500.0,0.00026027,7]
[344307595,1733335847117,-500.0,0.00026027,7]
[344307596,1733335847126,-500.0,0.00026027,7]
[344307597,1733335847135,-500.0,0.00026027,7]
[344307598,1733335847145,-500.0,0.00026027,7]
[344307599,1733335847154,-672.16,0.00026027,7]
[344307600,1733335847164,-9309.73,0.00026027,7]
[344307601,1733335847173,-697.38,0.00026027,7]
[344307602,1733335847184,-392.61693964,0.00026027,7]
[344307603,1733335847194,-500.0,0.00026027,7]
[344307604,1733335847203,-500.0,0.00026027,7]
[344307605,1733335847214,-1500.0,0.00026222,2]
[344307606,1733335847223,-552.07,0.00026301,7]
[344307607,1733335847233,-500.0,0.00026301,7]
[344307608,1733335847243,-564.25676882,0.00026301,7]
[344307609,1733335847252,-359.8303676,0.00026301,7]
[344307610,1733335847262,-588.69,0.00026301,7]
[344307611,1733335847271,-381.84229785,0.00026301,7]
[344307612,1733335847281,-500.0,0.00026301,7]
[344307613,1733335847290,-576.69,0.00026301,7]
[344307614,1733335847300,-572.04,0.00026301,7]
[344307615,1733335847311,-715.39,0.00026301,7]
[344307616,1733335847322,-500.0,0.00026301,7]
[344307617,1733335847333,-500.0,0.00026301,7]
[344307618,1733335847343,-731.03,0.00026301,7]
[344307619,1733335847353,-500.0,0.00026301,7]
[344307620,1733335847367,-500.0,0.00026301,7]
[344307621,1733335847379,-500.0,0.00026301,7]
[344307622,1733335847390,-500.0,0.00026301,7]
[344307623,1733335847401,-614.53,0.00026301,7]
[344307624,1733335847411,-539.85,0.00026301,7]
[344307625,1733335847420,-1472.45,0.00026301,7]
[344307626,1733335847430,-500.0,0.00026301,7]
[344307627,1733335847439,-587.17,0.00026301,7]
[344307628,1733335847449,-500.0,0.00026301,7]
[344307629,1733335847459,-591.54,0.00026301,7]
[344307630,1733335847468,-578.77,0.00026301,7]
[344307631,1733335847477,-500.0,0.00026301,7]
[344307632,1733335847487,-500.0,0.00026301,7]
[344307633,1733335847497,-500.0,0.00026301,7]
[344307634,1733335847506,-500.0,0.00026301,7]
[344307635,1733335847516,-500.0,0.00026301,7]
[344307636,1733335847526,-550.48,0.00026301,7]
[344307637,1733335847536,-500.0,0.00026301,7]
[344307638,1733335847546,-500.0,0.00026301,7]
[344307639,1733335847556,-500.0,0.00026301,7]
[344307640,1733335847565,-500.0,0.00026301,7]
[344307641,1733335847574,-500.0,0.00026301,7]
[344307642,1733335847584,-500.0,0.00026301,7]
[344307643,1733335847593,-549.47,0.00026301,7]
[344307644,1733335847602,-1169.88,0.00026301,7]
[344307645,1733335847613,-362.53635489,0.00026301,7]
[344307646,1733335847622,-500.0,0.00026301,7]
[344307647,1733335847631,-500.0,0.00026301,7]
[344307648,1733335847642,-500.0,0.00026301,7]
[344307649,1733335847652,-500.0,0.00026301,7]
[344307650,1733335847662,-1993.14,0.00026301,7]
[344307651,1733335847671,-500.0,0.00026301,7]
[344307652,1733335847681,-500.0,0.00026301,7]
[344307653,1733335847690,-500.0,0.00026301,7]
[344307654,1733335847700,-3095.31,0.00026301,7]
[344307655,1733335847710,-500.0,0.00026301,7]
[344307656,1733335847720,-509.36,0.00026301,7]
[344307657,1733335847730,-500.0,0.00026301,7]
[344307658,1733335847739,-500.0,0.00026301,7]
[344307659,1733335847749,-500.0,0.00026301,7]
[344307660,1733335847759,-500.0,0.00026301,7]
[344307661,1733335847768,-1008.24,0.00026301,7]
[344307662,1733335847778,-752.54,0.00026301,7]
[344307663,1733335847788,-1219.18,0.00026301,7]
[344307664,1733335847797,-529.55,0.00026301,7]
[344307665,1733335847807,-500.0,0.00026301,7]
[344307666,1733335847817,-717.25,0.00026301,7]
[344307667,1733335847826,-500.0,0.00026301,7]
[344307668,1733335847836,-2233.13,0.00026301,7]
[344307669,1733335847849,-597.45,0.00026301,7]
[344307670,1733335847859,-500.0,0.00026301,7]
[344307671,1733335847871,-500.0,0.00026301,7]
[344307672,1733335847881,-933.23,0.00026301,7]
[344307673,1733335847891,-1605.0,0.00026301,7]
[344307674,1733335847900,-500.0,0.00026301,7]
[344307675,1733335847911,-500.0,0.00026301,7]
[344307676,1733335847920,-571.72,0.00026301,7]
[344307677,1733335847930,-500.0,0.00026301,7]
[344307678,1733335847940,-723.72,0.00026301,7]
[344307679,1733335847950,-536.56,0.00026301,7]
[344307680,1733335847960,-572.72,0.00026301,7]
[344307681,1733335847969,-500.0,0.00026301,7]
[344307682,1733335847979,-500.0,0.00026301,7]
[344307683,1733335847989,-500.0,0.00026301,7]
[344307684,1733335847999,-500.0,0.00026301,7]
[344307685,1733335848009,-323.66937437,0.00026301,7]
[344307686,1733335848019,-500.0,0.00026301,7]
[344307687,1733335848029,-672.16,0.00026301,7]
[344307688,1733335848039,-9309.73,0.00026301,7]
[344307689,1733335848049,-697.38,0.00026301,7]
[344307690,1733335848059,-500.0,0.00026301,7]
[344307691,1733335848071,-606.68,0.00026301,7]
[344307692,1733335848080,-1105.81118844,0.00026374,2]
[344307693,1733335848090,-660.0,0.00026384,2]
[344307694,1733335848099,-500.0,0.00026567,2]
[344307695,1733335848109,-552.07,0.00026575,7]
[344307696,1733335848122,-160.50283263,0.00026575,7]
[344307697,1733335848131,-588.69,0.00026575,7]
[344307698,1733335848141,-500.0,0.00026575,7]
[344307699,1733335848151,-576.69,0.00026575,7]
[344307700,1733335848161,-572.04,0.00026575,7]
[344307701,1733335848171,-715.39,0.00026575,7]
[344307702,1733335848180,-500.0,0.00026575,7]
[344307703,1733335848191,-500.0,0.00026575,7]
[344307704,1733335848201,-731.03,0.00026575,7]
[344307705,1733335848211,-500.0,0.00026575,7]
[344307706,1733335848221,-500.0,0.00026575,7]
[344307707,1733335848231,-500.0,0.00026575,7]
[344307708,1733335848241,-500.0,0.00026575,7]
[344307709,1733335848251,-539.85,0.00026575,7]
[344307710,1733335848260,-1472.45,0.00026575,7]
[344307711,1733335848270,-500.0,0.00026575,7]
[344307712,1733335848280,-587.17,0.00026575,7]
[344307713,1733335848290,-500.0,0.00026575,7]
[344307714,1733335848301,-591.54,0.00026575,7]
[344307715,1733335848311,-578.77,0.00026575,7]
[344307716,1733335848322,-500.0,0.00026575,7]
[344307717,1733335848333,-500.0,0.00026575,7]
[344307718,1733335848343,-500.0,0.00026575,7]
[344307719,1733335848353,-500.0,0.00026575,7]
[344307720,1733335848365,-589.15629436,0.00026575,7]
[344307721,1733335848375,-337.9,0.00026575,7]
[344307722,1733335848385,-500.0,0.00026575,7]
[344307723,1733335848396,-500.0,0.00026575,7]
[344307724,1733335848406,-500.0,0.00026575,7]
[344307725,1733335848416,-500.0,0.00026575,7]
[344307726,1733335848426,-500.0,0.00026575,7]
[344307727,1733335848435,-1169.88,0.00026575,7]
[344307728,1733335848445,-500.0,0.00026575,7]
[344307729,1733335848454,-500.0,0.00026575,7]
[344307730,1733335848463,-500.0,0.00026575,7]
[344307731,1733335848473,-500.0,0.00026575,7]
[344307732,1733335848483,-1993.14,0.00026575,7]
[344307733,1733335848493,-500.0,0.00026575,7]
[344307734,1733335848503,-635.63917854,0.00026575,7]
[344307735,1733335848513,-500.0,0.00026575,7]
[344307736,1733335848523,-3095.31,0.00026575,7]
[344307737,1733335848532,-500.0,0.00026575,7]
[344307738,1733335848542,-509.36,0.00026575,7]
[344307739,1733335848552,-500.0,0.00026575,7]
[344307740,1733335848561,-500.0,0.00026575,7]
[344307741,1733335848570,-500.0,0.00026575,7]
[344307742,1733335848580,-500.0,0.00026575,7]
[344307743,1733335848590,-1008.24,0.00026575,7]
[344307744,1733335848600,-752.54,0.00026575,7]
[344307745,1733335848610,-1219.18,0.00026575,7]
[344307746,1733335848626,-529.55,0.00026575,7]
[344307747,1733335848637,-500.0,0.00026575,7]
[344307748,1733335848647,-717.25,0.00026575,7]
[344307749,1733335848656,-500.0,0.00026575,7]
[344307750,1733335848666,-2233.13,0.00026575,7]
[344307751,1733335848676,-597.45,0.00026575,7]
[344307752,1733335848685,-500.0,0.00026575,7]
[344307753,1733335848695,-500.0,0.00026575,7]
[344307754,1733335848705,-933.23,0.00026575,7]
[344307755,1733335848715,-1605.0,0.00026575,7]
[344307756,1733335848725,-500.0,0.00026575,7]
[344307757,1733335848735,-634.97,0.00026575,7]
[344307758,1733335848745,-571.72,0.00026575,7]
[344307759,1733335848754,-500.0,0.00026575,7]
[344307760,1733335848764,-723.72,0.00026575,7]
[344307761,1733335848774,-536.56,0.00026575,7]
[344307762,1733335848784,-572.72,0.00026575,7]
[344307763,1733335848794,-500.0,0.00026575,7]
[344307764,1733335848805,-500.0,0.00026575,7]
[344307765,1733335848815,-500.0,0.00026575,7]
[344307766,1733335848826,-500.0,0.00026575,7]
[344307767,1733335848836,-500.0,0.00026575,7]
[344307768,1733335848846,-672.16,0.00026575,7]
[344307769,1733335848856,-9309.73,0.00026575,7]
[344307770,1733335848871,-697.38,0.00026575,7]
[344307771,1733335848881,-500.0,0.00026575,7]
[344307772,1733335848891,-402.3709172,0.00026594,2]
[344307773,1733335848901,-150.0,0.00026757,2]
[344307774,1733335848911,-151.0,0.0002684,5]
[344307775,1733335848921,-552.07,0.00026849,7]
[344307776,1733335848931,-588.69,0.00026849,7]
[344307777,1733335848941,-500.0,0.00026849,7]
[344307778,1733335848951,-576.69,0.00026849,7]
[344307779,1733335848961,-572.04,0.00026849,7]
[344307780,1733335848971,-715.39,0.00026849,7]
[344307781,1733335848980,-500.0,0.00026849,7]
[344307782,1733335848990,-500.0,0.00026849,7]
[344307783,1733335849000,-731.03,0.00026849,7]
[344307784,1733335849010,-500.0,0.00026849,7]
[344307785,1733335849019,-500.0,0.00026849,7]
[344307786,1733335849030,-500.0,0.00026849,7]
[344307787,1733335849039,-500.0,0.00026849,7]
[344307788,1733335849049,-539.85,0.00026849,7]
[344307789,1733335849058,-1472.45,0.00026849,7]
[344307790,1733335849068,-500.0,0.00026849,7]
[344307791,1733335849077,-587.17,0.00026849,7]
[344307792,1733335849087,-500.0,0.00026849,7]
[344307793,1733335849097,-591.54,0.00026849,7]
[344307794,1733335849107,-578.77,0.00026849,7]
[344307795,1733335849119,-500.0,0.00026849,7]
[344307796,1733335849130,-500.0,0.00026849,7]
[344307797,1733335849139,-550.25263641,0.00026849,7]
[344307798,1733335849149,-500.0,0.00026849,7]
[344307799,1733335849159,-500.0,0.00026849,7]
[344307800,1733335849169,-500.0,0.00026849,7]
[344307801,1733335849179,-500.0,0.00026849,7]
[344307802,1733335849189,-440.43890258,0.00026849,7]
[344307803,1733335849200,-500.0,0.00026849,7]
[344307804,1733335849210,-1169.88,0.00026849,7]
[344307805,1733335849220,-500.0,0.00026849,7]
[344307806,1733335849230,-500.0,0.00026849,7]
[344307807,1733335849240,-500.0,0.00026849,7]
[344307808,1733335849249,-500.0,0.00026849,7]
[344307809,1733335849259,-1993.14,0.00026849,7]
[344307810,1733335849268,-500.0,0.00026849,7]
[344307811,1733335849278,-500.0,0.00026849,7]
[344307812,1733335849288,-3095.31,0.00026849,7]
[344307813,1733335849297,-509.36,0.00026849,7]
[344307814,1733335849307,-500.0,0.00026849,7]
[344307815,1733335849317,-500.0,0.00026849,7]
[344307816,1733335849328,-500.0,0.00026849,7]
[344307817,1733335849339,-500.0,0.00026849,7]
[344307818,1733335849348,-1008.24,0.00026849,7]
[344307819,1733335849359,-752.54,0.00026849,7]
[344307820,1733335849372,-1219.18,0.00026849,7]
[344307821,1733335849382,-500.0,0.00026849,7]
[344307822,1733335849392,-529.55,0.00026849,7]
[344307823,1733335849403,-717.25,0.00026849,7]
[344307824,1733335849412,-500.0,0.00026849,7]
[344307825,1733335849422,-2233.13,0.00026849,7]
[344307826,1733335849432,-597.45,0.00026849,7]
[344307827,1733335849441,-500.0,0.00026849,7]
[344307828,1733335849451,-500.0,0.00026849,7]
[344307829,1733335849460,-933.23,0.00026849,7]
[344307830,1733335849470,-1605.0,0.00026849,7]
[344307831,1733335849480,-239.42,0.00026849,7]
[344307832,1733335849490,-571.72,0.00026849,7]
[344307833,1733335849501,-500.0,0.00026849,7]
[344307834,1733335849511,-723.72,0.00026849,7]
[344307835,1733335849521,-536.56,0.00026849,7]
[344307836,1733335849530,-572.72,0.00026849,7]
[344307837,1733335849540,-500.0,0.00026849,7]
[344307838,1733335849551,-500.0,0.00026849,7]
[344307839,1733335849561,-500.0,0.00026849,7]
[344307840,1733335849571,-500.0,0.00026849,7]
[344307841,1733335849582,-498.9,0.00026849,7]
[344307842,1733335849591,-672.16,0.00026849,7]
[344307843,1733335849602,-9309.73,0.00026849,7]
[344307844,1733335849612,-697.38,0.00026849,7]
[344307845,1733335849625,-590.92226495,0.00026849,7]
[344307846,1733335849635,-268.037772,0.00026921,2]
[344307847,1733335849646,-1000.0,0.00027,27]
[344307848,1733335849656,-161.0,0.00027,2]
[344307849,1733335849665,-157.644442,0.00027,15]
[344307850,1733335849675,-32205.77614403,0.00027,2]
[344307851,1733335849685,-152.39915339,0.00027085,2]
[344307852,1733335849694,-677.48825126,0.00027115,2]
[344307853,1733335849704,-6305.9339122,0.00027115,2]
[344307854,1733335849714,-552.07,0.00027123,7]
[344307855,1733335849724,-588.69,0.00027123,7]
[344307856,1733335849735,-500.0,0.00027123,7]
[344307857,1733335849745,-576.69,0.00027123,7]
[344307858,1733335849755,-572.04,0.00027123,7]
[344307859,1733335849765,-715.39,0.00027123,7]
[344307860,1733335849775,-500.0,0.00027123,7]
[344307861,1733335849784,-731.03,0.00027123,7]
[344307862,1733335849794,-500.0,0.00027123,7]
[344307863,1733335849804,-500.0,0.00027123,7]
[344307864,1733335849813,-500.0,0.00027123,7]
[344307865,1733335849823,-500.0,0.00027123,7]
[344307866,1733335849834,-539.85,0.00027123,7]
[344307867,1733335849843,-1472.45,0.00027123,7]
[344307868,1733335849853,-648.02236731,0.00027123,7]
[344307869,1733335849865,-587.17,0.00027123,7]
[344307870,1733335849875,-500.0,0.00027123,7]
[344307871,1733335849886,-591.54,0.00027123,7]
[344307872,1733335849896,-578.77,0.00027123,7]
[344307873,1733335849906,-500.0,0.00027123,7]
[344307874,1733335850032,-413.0,0.00027123,7]
[344307875,1733335850055,-500.0,0.00027123,7]
[344307876,1733335850064,-500.0,0.00027123,7]
[344307877,1733335850073,-500.0,0.00027123,7]
[344307878,1733335850083,-500.0,0.00027123,7]
[344307879,1733335850092,-92.95950004,0.00027123,7]
[344307880,1733335850230,-665.85,0.00024657,7]
[344307881,1733335850242,-1429.28795321,0.00024657,7]
[344307882,1733335850254,-314.49075253,0.00024657,7]
[344307883,1733335850265,-1972.99282944,0.00024657,7]
[344307884,1733335850277,-1413.66846482,0.00024657,7]
[344307885,1733335850286,-5796.29,0.00024931,7]
[344307886,1733335850296,-5796.29,0.00025205,7]
[344307887,1733335850306,-5796.29,0.00025479,7]
[344307888,1733335850315,-5796.29,0.00025753,7]
[344307889,1733335850328,-1787.21153518,0.00026027,7]
[344307890,1733335850397,-3193.79153607,0.00026027,7]
[344307891,1733335850408,-815.28692875,0.00026027,7]
[344307892,1733335850417,-4667.21110292,0.00026301,7]
[344307893,1733335850428,-1129.07889708,0.00026301,7]
[344307894,1733335850438,-3558.98893356,0.00026575,7]
[344307895,1733335850449,-1181.30446287,0.00026575,7]
[344307896,1733335850660,-500.0,0.00024657,7]
[344307897,1733335850669,-1055.99660357,0.00026575,7]
[344307898,1733335850679,-5796.29,0.00026849,7]
[344307899,1733335850689,-161.0,0.00027,2]
[344307900,1733335850699,-407.04049996,0.00027123,7]
[344307901,1733335850708,-1169.88,0.00027123,7]
[344307902,1733335850718,-500.0,0.00027123,7]
[344307903,1733335850729,-500.0,0.00027123,7]
[344307904,1733335850738,-500.0,0.00027123,7]
[344307905,1733335850748,-500.0,0.00027123,7]
[344307906,1733335850758,-1993.14,0.00027123,7]
[344307907,1733335850767,-500.0,0.00027123,7]
[344307908,1733335850777,-500.0,0.00027123,7]
[344307909,1733335850787,-3095.31,0.00027123,7]
[344307910,1733335850797,-509.36,0.00027123,7]
[344307911,1733335850806,-500.0,0.00027123,7]
[344307912,1733335850816,-500.0,0.00027123,7]
[344307913,1733335850826,-395.35885246,0.00027123,7]
[344307914,1733335850835,-500.0,0.00027123,7]
[344307915,1733335850845,-1008.24,0.00027123,7]
[344307916,1733335850855,-752.54,0.00027123,7]
[344307917,1733335850865,-1219.18,0.00027123,7]
[344307918,1733335850878,-500.0,0.00027123,7]
[344307919,1733335850889,-529.55,0.00027123,7]
[344307920,1733335850898,-717.25,0.00027123,7]
[344307921,1733335850907,-500.0,0.00027123,7]
[344307922,1733335850916,-2233.13,0.00027123,7]
[344307923,1733335850926,-597.45,0.00027123,7]
[344307924,1733335850935,-237.5,0.00027123,7]
[344307925,1733335850944,-489.63903037,0.00027123,7]
[344307926,1733335850953,-933.23,0.00027123,7]
[344307927,1733335850963,-1605.0,0.00027123,7]
[344307928,1733335850972,-571.72,0.00027123,7]
[344307929,1733335850982,-500.0,0.00027123,7]
[344307930,1733335850991,-723.72,0.00027123,7]
[344307931,1733335851000,-536.56,0.00027123,7]
[344307932,1733335851010,-572.72,0.00027123,7]
[344307933,1733335851019,-500.0,0.00027123,7]
[344307934,1733335851029,-500.0,0.00027123,7]
[344307935,1733335851038,-500.0,0.00027123,7]
[344307936,1733335851048,-500.0,0.00027123,7]
[344307937,1733335851058,-672.16,0.00027123,7]
[344307938,1733335851067,-9309.73,0.00027123,7]
[344307939,1733335851077,-697.38,0.00027123,7]
[344307940,1733335851086,-5796.29,0.00027123,7]
[344307941,1733335851096,-1105.81118844,0.00027287,2]
[344307942,1733335851106,-151.0,0.000273,14]
[344307943,1733335851116,-6305.9339123,0.00027303,2]
[344307944,1733335851126,-587.0,0.00027335,2]
[344307945,1733335851136,-500.0,0.00027397,2]
[344307946,1733335851146,-552.07,0.00027397,7]
[344307947,1733335851155,-500.0,0.00027397,7]
[344307948,1733335851164,-576.69,0.00027397,7]
[344307949,1733335851173,-572.04,0.00027397,7]
[344307950,1733335851183,-715.39,0.00027397,7]
[344307951,1733335851192,-500.0,0.00027397,7]
[344307952,1733335851202,-731.03,0.00027397,7]
[344307953,1733335851211,-557.5001644,0.00027397,7]
[344307954,1733335851221,-500.0,0.00027397,7]
[344307955,1733335851231,-500.0,0.00027397,7]
[344307956,1733335851244,-411.47298949,0.00027397,7]
[344307957,1733335851260,-539.85,0.00027397,7]
[344307958,1733335851275,-1472.45,0.00027397,7]
[344307959,1733335851290,-587.17,0.00027397,7]
[344307960,1733335851306,-591.54,0.00027397,7]
[344307961,1733335851318,-500.0,0.00027397,7]
[344307962,1733335851334,-578.77,0.00027397,7]
[344307963,1733335851348,-330.96,0.00027397,7]
[344307964,1733335851361,-500.0,0.00027397,7]
[344307965,1733335851379,-406.21389815,0.00027397,7]
[344307966,1733335851393,-489.41551952,0.00027397,7]
[344307967,1733335851408,-618.88,0.00027397,7]
[344307968,1733335851423,-1169.88,0.00027397,7]
[344307969,1733335851437,-500.0,0.00027397,7]
[344307970,1733335851451,-500.0,0.00027397,7]
[344307971,1733335851464,-500.0,0.00027397,7]
[344307972,1733335851476,-500.0,0.00027397,7]
[344307973,1733335851489,-1993.14,0.00027397,7]
[344307974,1733335851501,-500.0,0.00027397,7]
[344307975,1733335851514,-500.0,0.00027397,7]
[344307976,1733335851529,-3095.31,0.00027397,7]
[344307977,1733335851541,-509.36,0.00027397,7]
[344307978,1733335851554,-500.0,0.00027397,7]
[344307979,1733335851567,-500.0,0.00027397,7]
[344307980,1733335851577,-500.0,0.00027397,7]
[344307981,1733335851589,-1008.24,0.00027397,7]
[344307982,1733335851602,-752.54,0.00027397,7]
[344307983,1733335851614,-1219.18,0.00027397,7]
[344307984,1733335851628,-464.0304523,0.00027397,7]
[344307985,1733335851641,-529.55,0.00027397,7]
[344307986,1733335851654,-717.25,0.00027397,7]
[344307987,1733335851669,-500.0,0.00027397,7]
[344307988,1733335851683,-2233.13,0.00027397,7]
[344307989,1733335851697,-597.45,0.00027397,7]
[344307990,1733335851710,-933.23,0.00027397,7]
[344307991,1733335851724,-1605.0,0.00027397,7]
[344307992,1733335851736,-106.67815952,0.00027397,7]
[344307993,1733335851750,-465.04184048,0.00027397,7]
[344307994,1733335851762,-500.0,0.00027397,7]
[344307995,1733335851774,-723.72,0.00027397,7]
[344307996,1733335851788,-536.56,0.00027397,7]
[344307997,1733335851803,-572.72,0.00027397,7]
[344307998,1733335851817,-500.0,0.00027397,7]
[344307999,1733335851829,-355.40738873,0.00027397,7]
[344308000,1733335851841,-500.0,0.00027397,7]
[344308001,1733335851853,-500.0,0.00027397,7]
[344308002,1733335851865,-672.16,0.00027397,7]
[344308003,1733335851882,-467.04693329,0.00027397,7]
[344308227,1733336378466,265.762696,0.00013973,2]
[344308241,1733336403032,11307.4080565,0.0001,2]
[344308318,1733337030119,282.638764,0.00013973,2]
[344308376,1733337032502,-300.0,0.00019989,2]
[344308377,1733337032512,-1074.97566102,0.0001999,2]
[344308378,1733337032525,-30526.57505664,0.0001999,2]
[344308379,1733337032535,-913.0962862,0.00019991,2]
[344308380,1733337032545,-5397.49041956,0.0002,2]
[344308381,1733337032556,-195.39115716,0.00020347,2]
[344308382,1733337032566,-2287.56789551,0.00020347,2]
[344308383,1733337032576,-2300.19553941,0.00020377,2]
[344308384,1733337032586,-282.638764,0.00020447,2]
[344308385,1733337032597,-24900.0,0.00021446,2]
[344308386,1733337032608,-172.2139998,0.00021543,2]
[344308387,1733337032618,-872.9990158,0.00021562,2]
[344308388,1733337032628,-152.0,0.00021582,2]
[344308389,1733337032643,-420.0,0.00021988,2]
[344308390,1733337032655,-154.0,0.00022,2]
[344308391,1733337032665,-3635.0474497,0.00022215,2]
[344308392,1733337032675,-437.32,0.00022282,3]
[344308393,1733337032686,-27559.4966214,0.00022292,2]
[344308394,1733337032698,-3655.8060756,0.00022357,2]
[344308395,1733337032710,-203.0,0.00023,2]
[344308396,1733337032719,-150.0,0.000231,2]
[344308397,1733337032733,-11137.0625812,0.00023906,11]
[344308398,1733337032743,-359.468657,0.00023906,2]
[344308399,1733337032754,-587.0,0.00024187,2]
[344308400,1733337032764,-155.23746858,0.00024656,2]
[344308401,1733337032774,-500.0,0.00024657,7]
[344308402,1733337032783,-500.0,0.00024657,7]
[344308403,1733337032793,-500.0,0.00024657,7]
[344308404,1733337032803,-500.0,0.00024657,7]
[344308405,1733337032814,-500.0,0.00024657,7]
[344308406,1733337032824,-500.0,0.00024657,7]
[344308407,1733337032833,-500.0,0.00024657,7]
[344308408,1733337032843,-500.0,0.00024657,7]
[344308409,1733337032853,-161.03125188,0.00024657,7]
[344308410,1733337032863,-500.0,0.00024657,7]
[344308411,1733337032872,-500.0,0.00024657,7]
[344308412,1733337032886,-500.0,0.00024657,7]
[344308413,1733337032896,-500.0,0.00024657,7]
[344308414,1733337032906,-500.0,0.00024657,7]
[344308415,1733337032916,-500.0,0.00024657,7]
[344308416,1733337032926,-500.0,0.00024657,7]
[344308417,1733337032936,-500.0,0.00024657,7]
[344308418,1733337032946,-500.0,0.00024657,7]
[344308419,1733337032956,-500.0,0.00024657,7]
[344308420,1733337032966,-500.0,0.00024657,7]
[344308421,1733337032976,-500.0,0.00024657,7]
[344308422,1733337032986,-200.0,0.00024657,7]
[344308423,1733337032996,-500.0,0.00024657,7]
[344308424,1733337033006,-500.0,0.00024657,7]
[344308425,1733337033016,-500.0,0.00024657,7]
[344308426,1733337033026,-500.0,0.00024657,7]
[344308427,1733337033036,-392.0110519,0.00024657,7]
[344308428,1733337033046,-500.0,0.00024657,7]
[344308429,1733337033057,-500.0,0.00024657,7]
[344308430,1733337033067,-505.30006414,0.00024657,7]
[344308431,1733337033078,-500.0,0.00024657,7]
[344308432,1733337033089,-500.0,0.00024657,7]
[344308433,1733337033099,-500.0,0.00024657,7]
[344308434,1733337033109,-500.0,0.00024657,7]
[344308435,1733337033120,-500.0,0.00024657,7]
[344308436,1733337033130,-500.0,0.00024657,7]
[344308437,1733337033153,-500.0,0.00024657,7]
[344308438,1733337033163,-500.0,0.00024657,7]
[344308439,1733337033173,-500.0,0.00024657,7]
[344308440,1733337033184,-500.0,0.00024657,7]
[344308441,1733337033194,-500.0,0.00024657,7]
[344308442,1733337033205,-500.0,0.00024657,7]
[344308443,1733337033215,-500.0,0.00024657,7]
[344308444,1733337033226,-500.0,0.00024657,7]
[344308445,1733337033237,-500.0,0.00024657,7]